fUST/lending_fUST_20250125
["ID","MTS","AMOUNT","RATE_DAILY","PERIOD"]
[350379059,1737817845963,-1984.33,0.00016712,2]
[350379061,1737817845972,-533.2,0.00016712,2]
[350379063,1737817845982,-3195.15,0.00016712,2]
[350379065,1737817845992,-740.29459079,0.00016712,2]
[350379067,1737817846005,-2696.88285657,0.00016712,2]
[350379109,1737817846384,-431.05357048,0.00016438,2]
[350379111,1737817846403,-68.94642952,0.00016438,2]
[350379113,1737817846413,-500.0,0.00016438,2]
[350379115,1737817846424,-500.0,0.00016575,2]
[350379117,1737817846435,-502.94394431,0.00016575,2]
[350379119,1737817846446,-34264.09255264,0.00016712,2]
[350379122,1737817846455,-605.71,0.00016712,2]
[350379124,1737817846467,-500.0,0.00016712,2]
[350379126,1737817846476,-2071.24,0.00016712,2]
[350379128,1737817846486,-500.0,0.00016712,2]
[350379129,1737817846496,-500.0,0.00016712,2]
[350379131,1737817846507,-500.0,0.00016712,2]
[350379133,1737817846518,-365.2,0.00016712,2]
[350379135,1737817846528,-1007.52,0.00016712,2]
[350379137,1737817846537,-835.05,0.00016712,2]
[350379139,1737817846547,-1010.83,0.00016712,2]
[350379141,1737817846556,-760.83,0.00016712,2]
[350379143,1737817846566,-2436.51,0.00016712,2]
[350379145,1737817846576,-500.0,0.00016712,2]
[350379147,1737817846586,-151.0,0.000168,2]
[350379149,1737817846596,-151.0,0.000168,2]
[350379151,1737817846605,-151.0,0.000168,2]
[350379153,1737817846614,-151.0,0.000168,2]
[350379155,1737817846623,-1276.62777269,0.00016848,5]
[350379157,1737817846633,-8102.38040456,0.00016848,5]
[350379160,1737817846643,-500.0,0.00016849,2]
[350379162,1737817846653,-658.45,0.00016849,2]
[350379164,1737817846662,-585.54,0.00016849,2]
[350379166,1737817846671,-689.06,0.00016849,2]
[350379167,1737817846681,-500.0,0.00016849,2]
[350379170,1737817846691,-500.0,0.00016849,2]
[350379172,1737817846701,-500.0,0.00016849,2]
[350379174,1737817846710,-500.0,0.00016849,2]
[350379175,1737817846719,-500.0,0.00016849,2]
[350379177,1737817846728,-231.93261586,0.00016849,2]
[350379180,1737817846738,-500.0,0.00016849,2]
[350379182,1737817846747,-500.0,0.00016849,2]
[350379184,1737817846757,-942.42,0.00016849,2]
[350379187,1737817846766,-500.0,0.00016849,2]
[350379189,1737817846775,-518.14,0.00016849,2]
[350379191,1737817846784,-830.0,0.00016849,2]
[350379192,1737817846794,-500.0,0.00016849,2]
[350379194,1737817846803,-500.0,0.00016849,2]
[350379196,1737817846813,-500.0,0.00016849,2]
[350379199,1737817846822,-589.9,0.00016849,2]
[350379201,1737817846831,-594.24,0.00016849,2]
[350379202,1737817846841,-418.20688036,0.00016849,2]
[350379204,1737817846850,-500.0,0.00016849,2]
[350379206,1737817846859,-711.96,0.00016849,2]
[350379209,1737817846871,-546.89,0.00016849,2]
[350379210,1737817846881,-1638.28,0.00016849,2]
[350379212,1737817846890,-500.0,0.00016849,2]
[350379214,1737817846900,-151.877022,0.00016849,2]
[350379216,1737817846909,-500.0,0.00016849,2]
[350379218,1737817846918,-500.0,0.00016849,2]
[350379220,1737817846928,-1712.09,0.00016849,2]
[350379222,1737817846938,-500.0,0.00016849,2]
[350379224,1737817846947,-500.0,0.00016849,2]
[350379226,1737817846956,-636.62,0.00016849,2]
[350379228,1737817846966,-754.77,0.00016849,2]
[350379230,1737817846975,-883.2,0.00016849,2]
[350379232,1737817846986,-556.7,0.00016849,2]
[350379234,1737817846995,-561.81,0.00016849,2]
[350379236,1737817847004,-251.03237806,0.00016849,2]
[350379244,1737817847070,-248.96762194,0.00016849,2]
[350379246,1737817847079,-597.26,0.00016849,2]
[350379248,1737817847088,-500.0,0.00016849,2]
[350379250,1737817847097,-662.74,0.00016849,2]
[350379252,1737817847107,-500.0,0.00016849,2]
[350379254,1737817847117,-833.46,0.00016849,2]
[350379256,1737817847126,-500.0,0.00016849,2]
[350379258,1737817847135,-925.26,0.00016849,2]
[350379260,1737817847144,-742.28,0.00016849,2]
[350379262,1737817847154,-500.0,0.00016849,2]
[350379263,1737817847164,-560.98,0.00016849,2]
[350379264,1737817847173,-356.04047329,0.00016849,2]
[350379270,1737817847249,-1538.92952671,0.00016849,2]
[350379272,1737817847259,-500.0,0.00016849,2]
[350379274,1737817847270,-597.42,0.00016849,2]
[350379276,1737817847279,-500.0,0.00016849,2]
[350379277,1737817847288,-500.0,0.00016849,2]
[350379280,1737817847298,-514.36,0.00016849,2]
[350379282,1737817847308,-909.79,0.00016849,2]
[350379283,1737817847317,-579.91,0.00016849,2]
[350379285,1737817847326,-171.91263423,0.00016849,2]
[350380657,1737818292266,155.433122,0.00022,30]
[350380659,1737818453314,231.561135,0.00013973,2]
[350380660,1737818637795,1807.0,0.00024,120]
[350380742,1737819032900,-9998.29328848,0.000163,2]
[350380743,1737819032910,-300.0,0.00016327,2]
[350380744,1737819032920,-884.51454435,0.00016328,2]
[350380745,1737819032929,-14652.36561766,0.000164,2]
[350380746,1737819032941,-16350.9276708,0.000164,2]
[350380747,1737819032951,-885.46006959,0.00016428,2]
[350380748,1737819032960,-300.0,0.00016437,2]
[350380749,1737819032970,-500.0,0.00016437,2]
[350380750,1737819032980,-500.0,0.00016437,2]
[350380751,1737819032989,-500.0,0.00016437,2]
[350380752,1737819032998,-500.0,0.00016437,2]
[350380753,1737819033008,-468.164249,0.00016437,2]
[350380754,1737819033017,-618.85967517,0.00016437,2]
[350380755,1737819033026,-499.99999999,0.00016437,2]
[350380756,1737819033035,-370.06165017,0.00016437,2]
[350380757,1737819033044,-500.0,0.00016438,2]
[350380758,1737819033054,-500.0,0.00016438,2]
[350380759,1737819033063,-502.4968623,0.00016438,2]
[350380760,1737819033073,-500.0,0.00016438,2]
[350380761,1737819033082,-500.34028633,0.00016438,2]
[350380762,1737819033092,-501.8298573,0.00016438,2]
[350380763,1737819033102,-334.84990363,0.00016438,2]
[350380764,1737819033111,-500.0,0.00016438,2]
[350380765,1737819033121,-500.0,0.00016438,2]
[350380767,1737819033130,-500.0,0.00016438,2]
[350380769,1737819033140,-500.0,0.00016438,2]
[350380771,1737819033150,-503.39640217,0.00016438,2]
[350380773,1737819033159,-500.0,0.00016438,2]
[350380774,1737819033170,-500.0,0.00016438,2]
[350380775,1737819033179,-500.0,0.00016438,2]
[350380776,1737819033189,-500.0,0.00016438,2]
[350380777,1737819033198,-504.03405527,0.00016438,2]
[350380778,1737819033208,-500.0,0.00016438,2]
[350380779,1737819033217,-501.23379196,0.00016438,2]
[350380780,1737819033226,-500.96356511,0.00016438,2]
[350380781,1737819033236,-501.15276701,0.00016438,2]
[350380782,1737819033245,-565.69982765,0.00016438,2]
[350380783,1737819033254,-500.0,0.00016438,2]
[350380784,1737819033263,-500.0,0.00016438,2]
[350380785,1737819033272,-501.36623284,0.00016438,2]
[350380786,1737819033282,-500.0,0.00016438,2]
[350380787,1737819033292,-500.0,0.00016438,2]
[350380788,1737819033301,-500.0,0.00016438,2]
[350380789,1737819033311,-500.0,0.00016438,2]
[350380790,1737819033320,-502.00350792,0.00016438,2]
[350380791,1737819033329,-500.0,0.00016438,2]
[350380792,1737819033339,-500.0,0.00016438,2]
[350380793,1737819033349,-500.0,0.00016438,2]
[350380794,1737819033359,-500.0,0.00016438,2]
[350380795,1737819033368,-500.0,0.00016438,14]
[350380796,1737819033378,-500.0,0.00016438,2]
[350380797,1737819033388,-500.0,0.00016438,2]
[350380798,1737819033397,-500.0,0.00016438,2]
[350380799,1737819033406,-500.0,0.00016438,2]
[350380800,1737819033416,-500.0,0.00016438,2]
[350380801,1737819033427,-500.0,0.00016438,2]
[350380802,1737819033436,-500.0,0.00016438,2]
[350380803,1737819033446,-500.0,0.00016438,2]
[350380804,1737819033456,-500.0,0.00016438,2]
[350380805,1737819033466,-500.0,0.00016438,2]
[350380806,1737819033475,-500.0,0.00016438,2]
[350380807,1737819033484,-500.0,0.00016438,2]
[350380808,1737819033494,-500.0,0.00016438,2]
[350380809,1737819033504,-511.77106659,0.00016438,2]
[350380810,1737819033513,-500.0,0.00016438,2]
[350380811,1737819033523,-500.0,0.00016438,2]
[350380812,1737819033533,-500.0,0.00016438,2]
[350380813,1737819033543,-500.0,0.00016438,2]
[350380814,1737819033552,-514.86,0.00016438,2]
[350380815,1737819033562,-500.0,0.00016438,2]
[350380816,1737819033572,-500.0,0.00016438,2]
[350380817,1737819033581,-500.0,0.00016438,2]
[350380818,1737819033591,-500.0,0.00016438,2]
[350380819,1737819033600,-500.0,0.00016438,2]
[350380820,1737819033609,-504.4273348,0.00016438,2]
[350380821,1737819033619,-506.13852001,0.00016438,2]
[350380822,1737819033629,-500.0,0.00016438,2]
[350380823,1737819033638,-200.0,0.00016438,2]
[350380824,1737819033647,-500.0,0.00016438,2]
[350380825,1737819033657,-502.09692297,0.00016438,2]
[350380826,1737819033666,-512.58249722,0.00016438,2]
[350380827,1737819033678,-500.0,0.00016438,2]
[350380828,1737819033688,-500.0,0.00016438,2]
[350380829,1737819033698,-475.10342369,0.00016438,2]
[350380830,1737819033707,-500.0,0.00016438,2]
[350380831,1737819033717,-500.0,0.00016438,2]
[350380832,1737819033728,-500.0,0.00016438,2]
[350380833,1737819033738,-500.0,0.00016438,2]
[350380834,1737819033747,-639.4,0.00016438,2]
[350380835,1737819033757,-500.0,0.00016438,2]
[350380836,1737819033767,-287.04423987,0.00016438,2]
[350380837,1737819033777,-506.36403659,0.00016438,2]
[350380838,1737819033787,-500.0,0.00016438,2]
[350380839,1737819033796,-500.0,0.00016438,2]
[350380840,1737819033809,-500.0,0.00016438,2]
[350380841,1737819033818,-500.0,0.00016438,2]
[350380842,1737819033827,-500.0,0.00016438,2]
[350380843,1737819033846,-700.1,0.00016438,2]
[350380844,1737819033859,-500.0,0.00016438,2]
[350380845,1737819033871,-500.0,0.00016438,2]
[350380846,1737819033881,-500.0,0.00016438,2]
[350380847,1737819033892,-593.3,0.00016438,2]
[350380848,1737819033902,-500.0,0.00016438,2]
[350380849,1737819033912,-1428.63,0.00016438,2]
[350380850,1737819033923,-500.0,0.00016438,2]
[350380851,1737819033932,-500.0,0.00016438,2]
[350380852,1737819033943,-500.0,0.00016438,2]
[350380853,1737819033953,-500.0,0.00016438,2]
[350380854,1737819033963,-500.0,0.00016438,2]
[350380855,1737819033973,-1513.42,0.00016438,2]
[350380856,1737819033983,-500.0,0.00016438,2]
[350380857,1737819033993,-500.0,0.00016438,2]
[350380858,1737819034004,-404.07418017,0.00016438,2]
[350380859,1737819034014,-500.0,0.00016438,2]
[350380860,1737819034024,-500.0,0.00016438,2]
[350380861,1737819034233,-500.0,0.00016438,2]
[350380862,1737819034243,-762.47,0.00016438,2]
[350380863,1737819034254,-504.85707916,0.00016438,2]
[350380864,1737819034264,-500.0,0.00016438,2]
[350380865,1737819034274,-500.0,0.00016438,2]
[350380866,1737819034284,-500.0,0.00016438,2]
[350380867,1737819034295,-670.98,0.00016438,2]
[350380868,1737819034305,-500.0,0.00016438,2]
[350380869,1737819034314,-500.0,0.00016438,2]
[350380870,1737819034325,-552.28,0.00016438,2]
[350380871,1737819034335,-500.0,0.00016438,2]
[350380872,1737819034345,-500.0,0.00016438,2]
[350380873,1737819034355,-500.0,0.00016438,2]
[350380874,1737819034365,-500.0,0.00016438,2]
[350380875,1737819034375,-500.0,0.00016438,2]
[350380876,1737819034386,-715.38,0.00016438,2]
[350380877,1737819034395,-500.0,0.00016438,2]
[350380878,1737819034405,-502.82575272,0.00016438,2]
[350380879,1737819034414,-500.0,0.00016438,2]
[350380880,1737819034426,-503.89170419,0.00016438,2]
[350380881,1737819034435,-500.0,0.00016438,2]
[350380882,1737819034445,-500.0,0.00016438,2]
[350380883,1737819034454,-500.0,0.00016438,2]
[350380884,1737819034463,-500.0,0.00016438,2]
[350380885,1737819034472,-500.0,0.00016438,2]
[350380886,1737819034482,-521.37,0.00016438,2]
[350380887,1737819034491,-500.0,0.00016438,2]
[350380888,1737819034500,-515.21635701,0.00016438,2]
[350380889,1737819034510,-820.72,0.00016438,2]
[350380890,1737819034519,-1643.36,0.00016438,2]
[350380891,1737819034528,-500.0,0.00016438,2]
[350380892,1737819034538,-500.0,0.00016438,2]
[350380893,1737819034547,-506.13259056,0.00016438,2]
[350380894,1737819034556,-500.4,0.00016438,2]
[350380895,1737819034566,-500.0,0.00016438,2]
[350380896,1737819034575,-500.0,0.00016438,2]
[350380897,1737819034585,-500.0,0.00016438,2]
[350380898,1737819034594,-500.0,0.00016438,2]
[350380899,1737819034605,-500.0,0.00016438,2]
[350380900,1737819034614,-500.0,0.00016438,2]
[350380901,1737819034624,-500.0,0.00016438,2]
[350380902,1737819034633,-500.0,0.00016438,2]
[350380903,1737819034642,-522.77,0.00016438,2]
[350380904,1737819034652,-500.0,0.00016438,2]
[350380905,1737819034662,-500.0,0.00016438,2]
[350380906,1737819034672,-503.71440355,0.00016438,2]
[350380907,1737819034682,-500.0,0.00016438,2]
[350380908,1737819034691,-500.0,0.00016438,2]
[350380909,1737819034701,-546.20655087,0.00016438,2]
[350380910,1737819034711,-500.0,0.00016438,2]
[350380911,1737819034720,-500.0,0.00016438,2]
[350380912,1737819034730,-500.0,0.00016438,2]
[350380913,1737819034739,-500.0,0.00016438,2]
[350380914,1737819034749,-500.0,0.00016438,2]
[350380915,1737819034758,-503.11123281,0.00016438,2]
[350380916,1737819034768,-513.58567481,0.00016438,2]
[350380917,1737819034778,-500.0,0.00016438,2]
[350380918,1737819034787,-500.0,0.00016438,2]
[350380919,1737819034797,-500.0,0.00016438,2]
[350380920,1737819034810,-505.63639187,0.00016438,2]
[350380921,1737819034820,-460.80774646,0.00016438,2]
[350380922,1737819034829,-512.5419339,0.00016438,2]
[350380923,1737819034838,-791.63,0.00016438,2]
[350380924,1737819034849,-542.45073537,0.00016438,2]
[350380925,1737819034858,-502.72343755,0.00016438,2]
[350380926,1737819034869,-506.15590604,0.00016438,2]
[350380927,1737819034879,-510.90131772,0.00016438,2]
[350380928,1737819034889,-500.0,0.00016438,2]
[350380929,1737819034898,-500.0,0.00016438,2]
[350380930,1737819034908,-500.0,0.00016438,2]
[350380931,1737819034918,-500.0,0.00016438,2]
[350380932,1737819034928,-500.0,0.00016438,2]
[350380933,1737819034938,-512.90968352,0.00016438,2]
[350380934,1737819034947,-500.0,0.00016438,2]
[350380935,1737819034956,-500.0,0.00016438,2]
[350380936,1737819034965,-500.0,0.00016438,2]
[350380937,1737819034975,-500.0,0.00016438,2]
[350380938,1737819034984,-500.0,0.00016438,2]
[350380939,1737819034993,-500.0,0.00016438,2]
[350380940,1737819035002,-500.0,0.00016438,2]
[350380941,1737819035011,-500.0,0.00016438,2]
[350380942,1737819035021,-500.0,0.00016438,2]
[350380943,1737819035030,-649.28,0.00016438,2]
[350380944,1737819035039,-500.0,0.00016438,2]
[350380945,1737819035048,-500.0,0.00016438,2]
[350380946,1737819035058,-500.0,0.00016438,2]
[350380947,1737819035067,-500.0,0.00016438,2]
[350380948,1737819035077,-500.0,0.00016438,2]
[350380949,1737819035087,-500.0,0.00016438,2]
[350380950,1737819035097,-781.49,0.00016438,2]
[350380951,1737819035107,-500.0,0.00016438,2]
[350380952,1737819035116,-500.0,0.00016438,2]
[350380953,1737819035126,-500.0,0.00016438,2]
[350380954,1737819035135,-500.0,0.00016438,2]
[350380955,1737819035145,-500.0,0.00016438,2]
[350380956,1737819035154,-194.8190949,0.00016438,2]
[350380957,1737819035164,-500.0,0.00016438,2]
[350380958,1737819035175,-629.25871907,0.00016438,2]
[350380959,1737819035185,-500.0,0.00016438,2]
[350380960,1737819035194,-500.0,0.00016438,2]
[350380961,1737819035203,-500.0,0.00016438,2]
[350380962,1737819035212,-500.0,0.00016438,2]
[350380963,1737819035222,-601.54,0.00016438,2]
[350380964,1737819035231,-500.0,0.00016438,2]
[350380965,1737819035240,-500.0,0.00016438,2]
[350380966,1737819035250,-1732.3,0.00016438,2]
[350380967,1737819035259,-500.0,0.00016438,2]
[350380968,1737819035268,-530.22749028,0.00016438,2]
[350380969,1737819035277,-500.0,0.00016438,2]
[350380970,1737819035287,-189.21202171,0.00016438,2]
[350380971,1737819035297,-500.0,0.00016438,2]
[350380972,1737819035306,-500.0,0.00016438,2]
[350380973,1737819035316,-500.0,0.00016438,2]
[350380974,1737819035325,-665.73,0.00016438,2]
[350380975,1737819035334,-500.0,0.00016438,2]
[350380976,1737819035345,-500.0,0.00016438,2]
[350380977,1737819035355,-500.0,0.00016438,2]
[350380978,1737819035365,-500.0,0.00016438,2]
[350380979,1737819035374,-616.07167751,0.00016438,2]
[350380980,1737819035384,-431.44148563,0.00016438,2]
[350380981,1737819035393,-500.0,0.00016438,2]
[350380982,1737819035402,-500.0,0.00016438,2]
[350380983,1737819035411,-500.0,0.00016438,2]
[350380984,1737819035423,-500.0,0.00016438,2]
[350380985,1737819035432,-500.0,0.00016438,2]
[350380986,1737819035441,-508.78,0.00016438,2]
[350380987,1737819035450,-500.0,0.00016438,2]
[350380988,1737819035461,-500.0,0.00016438,2]
[350380989,1737819035471,-638.79250811,0.00016438,2]
[350380990,1737819035480,-500.0,0.00016438,2]
[350380991,1737819035489,-500.0,0.00016438,2]
[350380992,1737819035498,-500.0,0.00016438,2]
[350380993,1737819035508,-2373.56,0.00016438,2]
[350380994,1737819035518,-600.33,0.00016438,2]
[350380995,1737819035527,-500.0,0.00016438,2]
[350380996,1737819035537,-500.0,0.00016438,2]
[350380997,1737819035546,-500.0,0.00016438,2]
[350380998,1737819035557,-212.29014918,0.00016438,2]
[350380999,1737819035566,-500.0,0.00016438,2]
[350381000,1737819035576,-500.0,0.00016438,2]
[350381001,1737819035586,-500.0,0.00016438,2]
[350381002,1737819035596,-500.0,0.00016438,2]
[350381003,1737819035605,-500.0,0.00016438,2]
[350381004,1737819035615,-500.0,0.00016438,2]
[350381005,1737819035624,-647.39,0.00016438,2]
[350381006,1737819035634,-500.0,0.00016438,2]
[350381007,1737819035643,-500.0,0.00016438,2]
[350381008,1737819035652,-509.63782948,0.00016438,2]
[350381009,1737819035662,-1118.58,0.00016438,2]
[350381010,1737819035675,-500.0,0.00016438,2]
[350381011,1737819035686,-500.0,0.00016438,2]
[350381012,1737819035696,-500.0,0.00016438,2]
[350381013,1737819035706,-502.00405354,0.00016438,2]
[350381014,1737819035715,-500.0,0.00016438,2]
[350381015,1737819035725,-500.0,0.00016438,2]
[350381016,1737819035734,-500.0,0.00016438,2]
[350381017,1737819035744,-500.0,0.00016438,2]
[350381018,1737819035753,-509.40398572,0.00016438,2]
[350381019,1737819035762,-500.0,0.00016438,2]
[350381020,1737819035772,-500.0,0.00016438,2]
[350381021,1737819035781,-521.2,0.00016438,2]
[350381022,1737819035790,-500.0,0.00016438,2]
[350381023,1737819035801,-14149.9,0.00016438,2]
[350381024,1737819035814,-500.0,0.00016438,2]
[350381025,1737819035823,-500.0,0.00016438,2]
[350381026,1737819035832,-500.0,0.00016438,2]
[350381027,1737819035843,-3995.06,0.00016438,2]
[350381028,1737819035852,-500.0,0.00016438,2]
[350381029,1737819035861,-500.0,0.00016438,2]
[350381030,1737819035870,-500.0,0.00016438,2]
[350381031,1737819035880,-500.0,0.00016438,2]
[350381032,1737819035889,-500.0,0.00016438,2]
[350381033,1737819035899,-500.0,0.00016438,2]
[350381034,1737819035908,-511.85731311,0.00016438,2]
[350381035,1737819035917,-500.0,0.00016438,2]
[350381036,1737819035929,-500.0,0.00016438,2]
[350381037,1737819035938,-1033.34,0.00016438,2]
[350381038,1737819035947,-400.43955943,0.00016438,2]
[350381039,1737819035957,-520.6485008,0.00016438,2]
[350381040,1737819035966,-500.0,0.00016438,2]
[350381041,1737819035975,-500.0,0.00016438,2]
[350381042,1737819035985,-826.79,0.00016438,2]
[350381043,1737819035994,-500.0,0.00016438,2]
[350381044,1737819036007,-552.6,0.00016438,2]
[350381045,1737819036016,-500.0,0.00016438,2]
[350381046,1737819036025,-500.0,0.00016438,2]
[350381047,1737819036034,-500.0,0.00016438,2]
[350381048,1737819036045,-500.0,0.00016438,2]
[350381049,1737819036055,-1743.09,0.00016438,2]
[350381050,1737819036064,-500.0,0.00016438,2]
[350381051,1737819036074,-500.0,0.00016438,2]
[350381052,1737819036083,-500.0,0.00016438,2]
[350381053,1737819036092,-500.0,0.00016438,2]
[350381054,1737819036101,-548.39,0.00016438,2]
[350381055,1737819036112,-10153.16,0.00016438,2]
[350381056,1737819036122,-500.0,0.00016438,2]
[350381057,1737819036132,-500.0,0.00016438,2]
[350381058,1737819036141,-500.0,0.00016438,2]
[350381059,1737819036151,-634.73,0.00016438,2]
[350381060,1737819036160,-500.0,0.00016438,2]
[350381061,1737819036169,-500.0,0.00016438,2]
[350381062,1737819036182,-1713.18,0.00016438,2]
[350381063,1737819036191,-500.0,0.00016438,2]
[350381064,1737819036201,-500.0,0.00016438,2]
[350381065,1737819036210,-633.18,0.00016438,2]
[350381066,1737819036219,-500.0,0.00016438,2]
[350381067,1737819036228,-500.0,0.00016438,2]
[350381068,1737819036238,-500.0,0.00016438,2]
[350381069,1737819036247,-1000.0,0.00016438,2]
[350381070,1737819036256,-980.85,0.00016438,2]
[350381071,1737819036266,-500.0,0.00016438,2]
[350381072,1737819036275,-500.0,0.00016438,2]
[350381073,1737819036285,-500.0,0.00016438,2]
[350381074,1737819036294,-616.38,0.00016438,2]
[350381075,1737819036303,-1780.93,0.00016438,2]
[350381076,1737819036312,-306.15922286,0.00016438,2]
[350381077,1737819036321,-500.0,0.00016438,2]
[350381078,1737819036331,-500.0,0.00016438,2]
[350381079,1737819036340,-500.0,0.00016438,2]
[350381080,1737819036349,-709.74,0.00016438,2]
[350381081,1737819036359,-500.0,0.00016438,2]
[350381082,1737819036368,-500.0,0.00016438,2]
[350381083,1737819036378,-507.73494904,0.00016438,2]
[350381084,1737819036387,-500.0,0.00016438,2]
[350381085,1737819036397,-500.0,0.00016438,2]
[350381086,1737819036406,-500.0,0.00016438,2]
[350381087,1737819036415,-500.0,0.00016438,2]
[350381088,1737819036426,-500.0,0.00016438,2]
[350381089,1737819036435,-724.53,0.00016438,2]
[350381090,1737819036444,-500.0,0.00016438,2]
[350381091,1737819036453,-500.0,0.00016438,2]
[350381092,1737819036462,-289.39246282,0.00016438,2]
[350381093,1737819036472,-807.94,0.00016438,2]
[350381094,1737819036481,-500.0,0.00016438,2]
[350381095,1737819036491,-500.0,0.00016438,2]
[350381096,1737819036501,-2658.28,0.00016438,2]
[350381097,1737819036511,-500.0,0.00016438,2]
[350381098,1737819036520,-500.0,0.00016438,2]
[350381099,1737819036529,-500.0,0.00016438,2]
[350381100,1737819036538,-500.0,0.00016438,2]
[350381101,1737819036548,-500.0,0.00016438,2]
[350381102,1737819036557,-670.92,0.00016438,2]
[350381103,1737819036566,-500.0,0.00016438,2]
[350381104,1737819036575,-500.0,0.00016438,2]
[350381105,1737819036585,-1625.17,0.00016438,2]
[350381106,1737819036594,-500.0,0.00016438,2]
[350381107,1737819036604,-500.0,0.00016438,2]
[350381108,1737819036614,-500.0,0.00016438,2]
[350381109,1737819036623,-445.52,0.00016438,2]
[350381110,1737819036633,-500.0,0.00016438,2]
[350381111,1737819036642,-33682.89,0.00016438,2]
[350381112,1737819036651,-516.03,0.00016438,2]
[350381113,1737819036661,-577.33,0.00016438,2]
[350381114,1737819036670,-1757.12,0.00016438,2]
[350381115,1737819036682,-501.46751487,0.00016438,2]
[350381116,1737819036692,-500.0,0.00016438,7]
[350381117,1737819036702,-500.0,0.00016438,2]
[350381118,1737819036711,-2013.22,0.00016438,2]
[350381119,1737819036720,-1936.36,0.00016438,2]
[350381120,1737819036730,-739.0,0.00016438,2]
[350381121,1737819036739,-500.0,0.00016438,2]
[350381122,1737819036749,-500.0,0.00016438,2]
[350381123,1737819036759,-500.0,0.00016438,2]
[350381124,1737819036768,-500.0,0.00016438,2]
[350381125,1737819036778,-500.0,0.00016438,2]
[350381126,1737819036788,-500.0,0.00016438,2]
[350381127,1737819036801,-500.0,0.00016438,2]
[350381128,1737819036810,-500.0,0.00016438,2]
[350381129,1737819036820,-500.0,0.00016438,2]
[350381130,1737819036830,-500.0,0.00016438,2]
[350381131,1737819036839,-500.0,0.00016438,2]
[350381132,1737819036849,-596.42671123,0.00016438,2]
[350381133,1737819036859,-9368.44,0.00016438,2]
[350381134,1737819036869,-500.0,0.00016438,2]
[350381135,1737819036878,-956.96,0.00016438,2]
[350381136,1737819036888,-500.0,0.00016438,2]
[350381137,1737819036898,-500.0,0.00016438,2]
[350381138,1737819036909,-500.0,0.00016438,2]
[350381139,1737819036918,-789.42,0.00016438,2]
[350381140,1737819036929,-500.0,0.00016438,2]
[350381141,1737819036938,-500.0,0.00016438,2]
[350381142,1737819036948,-500.0,0.00016438,2]
[350381143,1737819036957,-500.0,0.00016438,2]
[350381144,1737819036967,-500.0,0.00016438,2]
[350381145,1737819036976,-500.0,0.00016438,2]
[350381146,1737819036991,-881.58,0.00016438,2]
[350381147,1737819037002,-508.23899028,0.00016438,2]
[350381148,1737819037012,-500.0,0.00016438,2]
[350381149,1737819037021,-500.0,0.00016438,2]
[350381150,1737819037030,-500.0,0.00016438,2]
[350381151,1737819037040,-963.92,0.00016438,2]
[350381152,1737819037049,-500.0,0.00016438,2]